bitfinex/quotes_ETHUSD_20220111
["timestamp","ask_amount","ask_price","bid_price","bid_amount"]
[1641932146081,0.01364216,3244.3,3243.9,3.8678]
[1641932146278,0.01364216,3244.3,3243.4,1.2434]
[1641932146483,0.01307374,3244.2,3243.4,1.2434]
[1641932146879,0.01250531,3244.1,3243.4,1.2434]
[1641932147282,0.01193689,3244.0,3243.4,1.2434]
[1641932147683,0.01136847,3243.9,3243.4,1.2434]
[1641932147881,0.00373901,3243.8,3243.4,1.2434]
[1641932148082,0.00373901,3243.8,3242.6,1.1527]
[1641932148083,0.01080004,3243.8,3242.6,1.1527]
[1641932148282,2.92450666,3244.5,3242.6,5.1217]
[1641932148283,0.26389226,3243.5,3242.6,5.1217]
[1641932148683,0.00852635,3243.4,3242.6,3.969]
[1641932149103,0.00795793,3243.3,3242.6,3.969]
[1641932149504,0.0073895,3243.2,3242.6,3.969]
[1641932149706,0.0073895,3243.2,3243.0,0.84070382]
[1641932149905,0.00682108,3243.1,3243.0,0.84070382]
[1641932150122,0.00682108,3243.1,3243.0,1.14070382]
[1641932150504,0.00682108,3243.1,3243.0,1.44070382]
[1641932150905,0.00682108,3243.1,3243.0,6.59070382]
[1641932160553,0.00682108,3243.1,3243.0,8.59136607]
[1641932160754,0.00682108,3243.1,3243.0,9.39136607]
[1641932161755,0.00682108,3243.1,3243.0,10.39136607]
[1641932162358,0.00682108,3243.1,3243.0,8.69070382]
[1641932163656,0.00682108,3243.1,3243.0,26.74070382]
[1641932164305,0.00682108,3243.1,3243.0,8.69070382]
[1641932164905,0.00682108,3243.1,3243.0,26.74070382]
[1641932165303,0.00682108,3243.1,3243.0,8.69070382]
[1641932165704,0.00682108,3243.1,3243.0,7.89070382]
[1641932166105,0.00682108,3243.1,3243.0,6.59070382]
[1641932166304,0.00682108,3243.1,3243.0,7.89070382]
[1641932166908,0.00682108,3243.1,3243.0,9.83994239]
[1641932167107,0.00682108,3243.1,3243.0,7.89070382]
[1641932167311,0.00682108,3243.1,3243.0,6.59070382]
[1641932169556,0.00682108,3243.1,3243.0,25.64070382]
[1641932169963,0.00682108,3243.1,3243.0,7.59070382]
[1641932170158,0.00682108,3243.1,3243.0,7.89070382]
[1641932171605,0.00682108,3243.1,3243.0,7.59070382]
[1641932173807,0.00682108,3243.1,3243.0,6.75]
[1641932174013,0.00682108,3243.1,3243.0,1.0]
[1641932174410,0.00682108,3243.1,3242.8,1.0]
[1641932174809,0.00625266,3243.0,3242.8,1.0]
[1641932175257,0.00568423,3242.9,3242.7,12.5135]
[1641932175453,0.00568423,3242.9,3242.8,7.40534067]
[1641932175655,0.73101173,3244.1,3242.8,7.40534067]
[1641932175854,0.3,3244.0,3242.8,7.40534067]
[1641932176055,0.75893689,3244.0,3242.8,7.40534067]
[1641932177863,0.45893689,3244.0,3242.9,0.00941506]
[1641932178461,0.45893689,3244.0,3242.8,9.31716206]
[1641932178660,0.01193689,3244.0,3242.8,9.31716206]
[1641932179108,0.01193689,3244.0,3242.8,7.40534067]
[1641932179807,0.01193689,3244.0,3242.8,9.32028912]
[1641932181709,0.01193689,3244.0,3242.8,7.40534067]
[1641932181910,0.02338067,3243.9,3242.8,7.40534067]
[1641932182209,0.01193689,3244.0,3242.8,7.40534067]
[1641932182409,0.01080004,3243.8,3242.8,7.40534067]
[1641932182681,0.01136847,3243.9,3242.8,7.40534067]
[1641932182876,0.01023162,3243.7,3242.8,7.40534067]
[1641932183082,0.01080004,3243.8,3242.8,7.40534067]
[1641932183277,0.0096632,3243.6,3242.8,7.40534067]
[1641932183477,0.01023162,3243.7,3242.8,7.40534067]
[1641932183777,0.0096632,3243.6,3242.8,7.40534067]
[1641932184180,0.00909477,3243.5,3242.8,7.40534067]
[1641932184578,0.00852635,3243.4,3242.9,0.02482898]
[1641932184979,0.00795793,3243.3,3242.9,0.02482898]
[1641932185180,0.00795793,3243.3,3242.9,1.02482898]
[1641932185382,0.0073895,3243.2,3243.0,1.95744331]
[1641932185586,0.0073895,3243.2,3243.0,2.25744331]
[1641932185782,0.28401173,3244.1,3243.1,7.7959]
[1641932186183,0.01193689,3244.0,3243.1,7.7959]
[1641932186703,0.01136847,3243.9,3243.1,7.7959]
[1641932187103,0.01080004,3243.8,3243.2,1.90630022]
[1641932187505,0.01023162,3243.7,3243.2,1.90630022]
[1641932188004,0.0096632,3243.6,3243.2,1.90630022]
[1641932188410,0.00909477,3243.5,3243.2,1.90630022]
[1641932188808,0.00852635,3243.4,3243.2,1.90630022]
[1641932189207,0.00795793,3243.3,3243.2,1.90630022]
[1641932189408,0.00795793,3243.3,3243.2,8.45630022]
[1641932190352,0.00795793,3243.3,3243.2,6.55]
[1641932190551,0.00795793,3243.3,3243.2,8.43813349]
[1641932192255,0.00795793,3243.3,3243.2,9.43813349]
[1641932193556,0.00795793,3243.3,3243.2,7.55]
[1641932195612,0.00795793,3243.3,3243.2,9.72600994]
[1641932196211,0.00795793,3243.3,3243.2,9.73965087]
[1641932196411,0.00795793,3243.3,3243.2,7.85]
[1641932196611,0.00795793,3243.3,3243.2,6.55]
[1641932197012,0.00795793,3243.3,3243.2,7.85]
[1641932199860,0.00795793,3243.3,3243.2,7.55]
[1641932201457,0.00795793,3243.3,3243.1,1.2459]
[1641932201848,0.0073895,3243.2,3243.1,1.2459]
[1641932202449,0.0073895,3243.2,3243.1,5.1959]
[1641932207160,0.0073895,3243.2,3243.1,7.6959]
[1641932208061,8.95e-05,3243.2,3243.1,27.8358]
[1641932210026,8.95e-05,3243.2,3243.1,27.91287]
[1641932211328,8.95e-05,3243.2,3243.1,27.8358]
[1641932211528,8.95e-05,3243.2,3243.1,30.46238509]
[1641932212429,8.95e-05,3243.2,3243.1,27.8358]
[1641932213352,8.95e-05,3243.2,3243.1,28.2828]
[1641932213752,8.95e-05,3243.2,3243.1,30.90944431]
[1641932216407,8.95e-05,3243.2,3243.1,30.98651431]
[1641932220661,8.95e-05,3243.2,3243.1,8.26954431]
[1641932220959,8.95e-05,3243.2,3243.1,7.82254431]
[1641932221158,8.95e-05,3243.2,3243.1,25.87254431]
[1641932221557,8.95e-05,3243.2,3243.1,23.2459]
[1641932222164,8.95e-05,3243.2,3243.1,5.1959]
[1641932222660,8.95e-05,3243.2,3243.1,1.2459]
[1641932222860,8.95e-05,3243.2,3243.1,2.2459]
[1641932223058,8.95e-05,3243.2,3243.1,5.6959]
[1641932223462,8.95e-05,3243.2,3243.1,6.6959]
[1641932224115,8.95e-05,3243.2,3243.1,5.6959]
[1641932224315,8.95e-05,3243.2,3243.1,6.6959]
[1641932225923,8.95e-05,3243.2,3243.1,8.7959]
[1641932226422,8.95e-05,3243.2,3243.1,26.8459]
[1641932227022,8.95e-05,3243.2,3243.1,29.47260673]
[1641932228260,8.95e-05,3243.2,3243.1,26.8459]
[1641932229263,8.95e-05,3243.2,3243.1,29.47262921]
[1641932232110,0.35664872,3244.1,3243.1,29.47262921]
[1641932232312,0.35664872,3244.1,3243.6,1.01949006]
[1641932232517,0.0438944,3244.0,3243.6,1.01949006]
[1641932232713,0.00463689,3244.0,3243.6,1.01949006]
[1641932233011,0.00406847,3243.9,3243.1,3.87262921]
[1641932233214,0.85786847,3243.9,3243.1,3.87262921]
[1641932233413,2.1537283,3243.8,3243.1,1.2459]
[1641932233614,2.14553559,3243.8,3243.1,1.2459]
[1641932233814,0.00293162,3243.7,3242.7,11.343]
[1641932234015,0.00293162,3243.7,3242.7,3.7371]
[1641932234217,0.4493632,3243.6,3242.8,0.00218419]
[1641932234418,0.7493632,3243.6,3242.8,0.00218419]
[1641932234614,0.00179477,3243.5,3242.8,0.00218419]
[1641932234815,0.447,3243.4,3242.7,0.00275261]
[1641932235024,0.74822635,3243.4,3242.7,0.00275261]
[1641932235493,1.30092635,3243.4,3242.7,0.00275261]
[1641932236194,2.16164334,3243.3,3242.7,0.00275261]
[1641932236392,0.447,3243.2,3242.7,0.00275261]
[1641932236594,2.32295573,3243.1,3242.7,0.00275261]
[1641932236793,2.32295573,3243.1,3242.3,0.00502631]
[1641932236994,2.62295573,3243.1,3242.3,0.00502631]
[1641932237295,0.447,3243.0,3242.3,0.00502631]
[1641932237497,3.2,3242.4,3242.3,0.00502631]
[1641932237703,3.2,3242.4,3241.3,3.7901]
[1641932237704,4.4335,3242.4,3241.8,0.00786843]
[1641932237895,0.3,3242.3,3241.4,0.01014212]
[1641932238092,1.3,3242.3,3241.4,0.01014212]
[1641932238294,1.3,3242.3,3241.2,1.08826757]
[1641932238493,0.447,3242.2,3241.2,1.08826757]
[1641932238708,0.447,3242.2,3241.3,0.01071054]
[1641932238910,0.747,3242.2,3241.3,0.01071054]
[1641932239719,2.51620745,3242.1,3241.0,0.01241581]
[1641932239917,0.447,3242.0,3241.0,0.01241581]
[1641932240120,2.32308562,3241.9,3240.9,0.01298424]
[1641932240326,0.447,3241.8,3240.9,0.01298424]
[1641932240517,2.43980028,3241.7,3241.0,0.84825645]
[1641932240717,0.447,3241.6,3240.9,0.01298424]
[1641932240918,0.51453368,3241.4,3241.1,0.01184739]
[1641932241122,0.447,3241.3,3240.9,0.01298424]
[1641932241424,0.747,3241.3,3240.2,0.0169632]
[1641932241619,0.747,3241.3,3240.2,1.10844274]
[1641932241818,1.047,3241.3,3240.2,1.10844274]
[1641932242018,1.047,3241.3,3240.3,0.01639478]
[1641932242419,2.12548273,3241.3,3240.3,0.01639478]
[1641932242659,3.12548273,3241.3,3240.3,0.01639478]
[1641932243062,2.32098995,3241.2,3240.3,0.01639478]
[1641932243262,0.447,3241.1,3240.3,0.01639478]
[1641932243464,2.73519313,3241.0,3240.1,0.01753162]
[1641932243664,0.447,3240.9,3240.1,0.01753162]
[1641932243863,2.41014717,3240.8,3240.1,0.01753162]
[1641932244065,0.447,3240.7,3240.1,0.01753162]
[1641932244370,0.7547,3240.4,3240.1,0.01753162]
[1641932244568,0.447,3240.3,3240.1,0.01753162]
[1641932244765,1.3668,3240.3,3240.1,0.01753162]
[1641932245164,3.83072776,3240.2,3240.1,0.01753162]
[1641932245468,3.83072776,3240.2,3239.9,0.74692167]
[1641932245469,4.87772776,3240.2,3239.9,0.72245329]
[1641932245665,1.0,3240.1,3239.9,0.72245329]
[1641932245866,0.447,3240.0,3239.9,0.72245329]
[1641932246265,0.447,3240.0,3239.9,0.72359014]
[1641932247747,0.447,3240.0,3239.9,4.37359014]
[1641932248252,0.447,3240.0,3239.9,0.72359014]
[1641932249646,0.447,3240.0,3239.9,5.17359014]
[1641932250159,0.30391339,3240.3,3239.9,5.17359014]
[1641932250359,0.30391339,3240.3,3240.1,1.1079221]
[1641932253469,0.30391339,3240.3,3239.9,5.17359014]
[1641932254419,0.30391339,3240.3,3240.0,0.88813055]
[1641932255923,2.23150887,3241.1,3240.0,0.88813055]
[1641932255924,1.07848273,3241.3,3240.0,0.88813055]
[1641932256127,1.07848273,3241.3,3240.1,3.7153853]
[1641932256324,0.00625265,3241.2,3240.1,3.7012]
[1641932256722,0.00568423,3241.1,3240.1,7.6784]
[1641932257122,0.00511581,3241.0,3240.1,7.6784]
[1641932257524,0.00454738,3240.9,3240.1,7.6784]
[1641932257974,0.00397896,3240.8,3240.1,7.6784]
[1641932258375,0.00341054,3240.7,3240.1,7.6784]
[1641932258787,0.00284211,3240.6,3240.1,7.6784]
[1641932258981,0.00284211,3240.6,3240.2,0.00408898]
[1641932259182,0.00227369,3240.5,3240.3,18.05]
[1641932259580,0.00170527,3240.4,3240.3,18.05]
[1641932259780,0.00170527,3240.4,3240.3,19.05]
[1641932261708,0.00170527,3240.4,3240.2,1.1699]
[1641932262108,0.00113684,3240.3,3240.2,1.1699]
[1641932262512,0.00113684,3240.3,3240.2,7.7199]
[1641932264814,0.00113684,3240.3,3240.2,8.7199]
[1641932265015,0.00113684,3240.3,3240.2,26.7699]
[1641932265480,0.00113684,3240.3,3240.2,8.7199]
[1641932266181,0.00113684,3240.3,3240.2,1.1699]
[1641932266588,0.00113684,3240.3,3240.2,5.5199]
[1641932267582,0.00113684,3240.3,3240.2,7.7199]
[1641932269219,0.00113684,3240.3,3240.2,8.7199]
[1641932273862,0.00113684,3240.3,3240.2,6.5199]
[1641932274263,0.00113684,3240.3,3240.2,5.5199]
[1641932274569,0.00113684,3240.3,3240.2,7.7199]
[1641932275362,0.00113684,3240.3,3240.2,8.7199]
[1641932275562,3.684e-05,3240.3,3240.2,8.7199]
[1641932275765,3.684e-05,3240.3,3240.2,27.5169]
[1641932276539,3.684e-05,3240.3,3240.2,30.14551802]
[1641932276729,0.36937209,3241.8,3240.2,30.14551802]
[1641932276927,0.36937209,3241.8,3240.3,0.01058474]
[1641932277136,0.00795793,3241.7,3241.4,0.96443959]
[1641932277529,0.00738951,3241.6,3241.4,0.96443959]
[1641932277931,0.00682108,3241.5,3241.4,0.96443959]
[1641932280262,0.00682108,3241.5,3241.4,0.94835488]
[1641932280669,0.00682108,3241.5,3240.3,1.0]
[1641932281076,0.00625266,3241.4,3240.3,1.0]
[1641932281465,0.00568424,3241.3,3240.3,1.0]
[1641932281967,0.36937209,3241.8,3241.0,0.90700835]
[1641932281968,0.00511581,3241.2,3241.0,0.90700835]
[1641932282365,0.00454739,3241.1,3241.0,4.95700835]
[1641932283366,0.00454739,3241.1,3241.0,0.90700835]
[1641932284407,0.00454739,3241.1,3240.6,1.1507]
[1641932284815,0.00397897,3241.0,3240.6,1.1507]
[1641932285209,0.00341054,3240.9,3240.6,1.1507]
[1641932285612,0.00284212,3240.8,3240.6,1.1507]
[1641932286016,0.0022737,3240.7,3240.6,1.1507]
[1641932286214,0.0022737,3240.7,3240.6,2.05647917]
[1641932286412,0.0022737,3240.7,3240.6,5.65647917]
[1641932288966,0.0022737,3240.7,3240.6,5.59447917]
[1641932289970,0.0022737,3240.7,3240.6,4.50577917]
[1641932290167,0.0022737,3240.7,3240.6,0.90577917]
[1641932292016,0.0022737,3240.7,3240.2,2.3827]
[1641932292217,0.00363966,3240.6,3240.2,2.3827]
[1641932292420,0.00534493,3240.6,3240.1,3.7012]
[1641932292619,0.00113685,3240.5,3240.1,3.7012]
[1641932296467,0.00113685,3240.5,3239.9,0.72245329]
[1641932296468,0.447,3240.4,3239.9,0.72245329]
[1641932296670,2.23131014,3240.3,3239.9,0.72245329]
[1641932296873,0.45993592,3240.2,3240.0,0.00170527]
[1641932297073,5.31843251,3240.1,3240.0,0.00170527]
[1641932297271,6.06543251,3240.1,3240.0,0.00170527]
[1641932297477,2.047,3240.1,3240.0,0.00170527]
[1641932297673,4.12672027,3240.1,3240.0,0.00170527]
[1641932298373,0.02091562,3239.9,3238.6,7.9086]
[1641932298575,0.447,3239.8,3238.6,7.9086]
[1641932298773,0.447,3239.7,3239.4,0.00341054]
[1641932299017,0.747,3239.7,3239.4,0.00341054]
[1641932299623,0.747,3239.7,3239.3,0.91681204]
[1641932300124,0.00113685,3239.6,3239.3,0.91681204]
[1641932300325,0.447,3239.5,3239.3,0.91681204]
[1641932303168,0.00113685,3239.6,3239.3,0.91681204]
[1641932304162,0.00113685,3239.6,3239.3,2.85708397]
[1641932304367,0.00113685,3239.6,3239.4,9.5007]
[1641932310469,0.00113685,3239.6,3239.4,3.7519]
[1641932316025,0.00113685,3239.6,3239.5,6.55]
[1641932316223,0.00113685,3239.6,3239.5,8.44974578]
[1641932316419,0.00113685,3239.6,3239.5,6.55]
[1641932316620,0.00113685,3239.6,3239.5,8.44379844]
[1641932317672,0.00113685,3239.6,3239.5,6.55]
[1641932318259,0.00113685,3239.6,3239.5,8.44911866]
[1641932318460,0.00113685,3239.6,3239.5,9.44911866]
[1641932318866,0.00113685,3239.6,3239.5,9.74911866]
[1641932321415,0.00113685,3239.6,3239.5,9.44911866]
[1641932321617,0.00113685,3239.6,3239.5,6.55]
[1641932326673,0.80606392,3240.9,3239.6,6.55]
[1641932326875,1.07848273,3241.3,3241.1,0.981432]
[1641932327075,1.07848273,3241.3,3241.1,2.009432]
[1641932327678,0.36937209,3241.8,3241.1,2.009432]
[1641932327874,0.36937209,3241.8,3241.6,1.07148841]
[1641932328175,0.01193689,3241.7,3241.6,1.07148841]
[1641932339724,0.01193689,3241.7,3240.7,17.0403]
[1641932340186,0.01136847,3241.6,3240.7,17.0403]
[1641932340589,0.01080004,3241.5,3240.7,17.0403]
[1641932340786,0.01080004,3241.5,3240.7,18.14965699]
[1641932340985,0.01023162,3241.4,3240.7,18.14965699]
[1641932341385,0.66937209,3241.8,3240.7,18.14965699]
[1641932341386,0.0096632,3241.3,3240.7,18.14965699]
[1641932341787,0.00909477,3241.2,3240.7,18.14965699]
[1641932342195,0.00852635,3241.1,3240.7,18.14965699]
[1641932342588,0.00795793,3241.0,3240.7,18.14965699]
[1641932342988,0.0073895,3240.9,3240.7,18.14965699]
[1641932343387,0.00682108,3240.8,3240.7,18.14965699]
[1641932346019,0.00682108,3240.8,3240.7,19.14965699]
[1641932346222,2.108e-05,3240.8,3240.7,19.14965699]
[1641932346524,2.108e-05,3240.8,3240.7,37.1763]
[1641932347021,2.108e-05,3240.8,3240.7,37.4763]
[1641932347224,6.11,3242.2,3240.9,18.07124694]
[1641932347424,6.11,3242.2,3241.5,1.12301724]
[1641932347680,0.0073895,3242.1,3241.5,1.12301724]
[1641932347868,0.0073895,3242.1,3241.5,1.42301724]
[1641932348172,6.11,3242.2,3241.6,18.05]
[1641932348369,2.01299215,3243.7,3242.5,0.92771758]
[1641932348572,6.11,3243.3,3242.5,0.92771758]
[1641932348767,0.00511581,3242.9,3242.5,0.92771758]
[1641932349168,0.00454739,3242.8,3242.5,0.92771758]
[1641932349568,0.00397897,3242.7,3242.5,0.92771758]
[1641932349968,6.11,3243.3,3242.5,0.92771758]
[1641932349969,0.00341054,3242.6,3242.5,0.92771758]
[1641932351418,0.00341054,3242.6,3242.1,1.0]
[1641932351618,0.00341054,3242.6,3242.0,4.9229]
[1641932351822,2.13028952,3242.8,3242.0,4.9229]
[1641932352021,0.52698305,3242.6,3242.1,0.00227369]
[1641932352220,2.35475954,3242.5,3242.1,0.00227369]
[1641932352423,2.65475954,3242.5,3242.1,0.00227369]
[1641932352619,3.17744317,3242.5,3241.9,0.00341054]
[1641932352819,3.46004317,3242.5,3241.9,0.00341054]
[1641932354023,0.82698305,3242.5,3241.9,0.00341054]
[1641932355294,0.747,3242.5,3241.9,0.00341054]
[1641932355697,2.11354019,3242.4,3241.9,0.00341054]
[1641932355896,0.447,3242.3,3241.5,0.00568424]
[1641932356196,2.31141998,3242.2,3241.5,0.00568424]
[1641932356396,0.447,3242.1,3241.5,0.00568424]
[1641932356597,2.58535912,3242.1,3241.5,0.00568424]
[1641932356795,2.53568448,3242.1,3241.5,0.00568424]
[1641932356996,1.0,3242.0,3241.5,0.00568424]
[1641932357199,5.15,3241.6,3241.5,0.00568424]
[1641932357397,5.15,3241.6,3240.6,3.7929]
[1641932357398,2.91691527,3241.5,3240.6,3.7929]
[1641932357600,2.8899477,3241.4,3240.9,0.00341054]
[1641932358198,3.0,3241.3,3240.6,3.73431054]
[1641932358395,0.447,3241.2,3240.7,0.00113684]
[1641932358596,2.56311204,3241.2,3240.7,0.00113684]
[1641932358796,2.55254362,3241.2,3240.7,0.00113684]
[1641932359218,0.43813685,3241.2,3240.7,0.00227369]
[1641932359623,2.53716395,3241.2,3240.6,0.00284212]
[1641932360427,2.53716395,3241.2,3240.4,0.00397896]
[1641932360624,1.0,3241.1,3240.4,0.00397896]
[1641932360824,2.77963438,3241.0,3239.9,0.00682108]
[1641932361025,2.77963438,3241.0,3240.0,0.84833477]
[1641932361227,0.27257301,3240.6,3240.0,0.84833477]
[1641932361528,0.27257301,3240.6,3240.1,0.00568423]
[1641932361725,0.27257301,3240.6,3240.5,3.62922139]
[1641932362127,0.27257301,3240.6,3240.5,3.63263193]
[1641932362977,0.27257301,3240.6,3240.5,2.50341054]
[1641932364179,0.27257301,3240.6,3240.5,0.00341054]
[1641932364581,0.27257301,3240.6,3240.4,0.00397896]
[1641932365387,1.39567301,3240.6,3240.4,0.00397896]
[1641932365585,2.53824343,3240.5,3240.4,0.00397896]
[1641932365884,2.83824343,3240.5,3239.9,0.00682108]
[1641932366084,3.13824343,3240.5,3239.9,0.00682108]
[1641932366718,2.75,3240.4,3239.8,3.66652108]
[1641932366922,2.68302369,3240.3,3239.8,3.66652108]
[1641932367119,0.447,3240.2,3239.8,3.66652108]
[1641932367318,2.09832635,3240.1,3239.3,8.94221204]
[1641932367522,0.447,3240.0,3239.3,8.94221204]
[1641932367721,0.447,3240.0,3239.6,0.00170527]
[1641932367928,0.447,3240.0,3239.7,0.83671272]
[1641932368725,0.00113685,3240.1,3239.7,0.83671272]
[1641932369824,0.00113685,3240.1,3239.6,0.00170527]
[1641932370030,0.447,3240.0,3239.6,0.00170527]
[1641932371190,0.447,3240.0,3239.5,0.0022737]
[1641932371689,0.00113685,3240.1,3239.9,4.18879575]
[1641932378776,0.00113685,3240.1,3240.0,7.35]
[1641932379079,0.00113685,3240.1,3240.0,6.35]
[1641932383839,0.22370986,3240.6,3240.1,6.0]
[1641932384044,0.22370986,3240.6,3240.2,1.0]
[1641932384243,0.00227369,3240.5,3240.2,19.05]
[1641932384443,0.00227369,3240.5,3240.3,5.4843]
[1641932384643,2.08823529,3241.9,3241.4,1.10286379]
[1641932384842,2.08823529,3241.9,3240.4,1.0]
[1641932384843,3.6981,3242.1,3240.5,3.7645]
[1641932385046,0.01023162,3241.9,3240.6,1.0]
[1641932385272,0.01023162,3241.9,3240.7,1.1977]
[1641932385471,0.00966319,3241.8,3240.7,1.1977]
[1641932385774,0.00909477,3241.7,3240.7,1.1977]
[1641932386171,0.00852635,3241.6,3240.7,1.1977]
[1641932386370,0.00852635,3241.6,3241.2,1.1604832]
[1641932386677,0.00795792,3241.5,3241.2,1.1604832]
[1641932387077,0.0073895,3241.4,3241.3,6.55991384]
[1641932387282,0.0073895,3241.4,3241.3,6.55]
[1641932389326,0.0073895,3241.4,3241.2,1.1604832]
[1641932389725,0.00682108,3241.3,3241.2,1.1604832]
[1641932390129,0.00682108,3241.3,3240.7,1.1977]
[1641932390527,0.00625265,3241.2,3240.7,1.1977]
[1641932390927,0.00568423,3241.1,3240.7,1.1977]
[1641932391134,0.00568423,3241.1,3240.8,1.10762201]
[1641932391328,0.00511581,3241.0,3240.8,1.10762201]
[1641932391728,0.00454738,3240.9,3240.8,1.10762201]
[1641932392228,2.60047933,3242.3,3240.9,5.5]
[1641932392431,3.20047933,3242.3,3240.9,5.5]
[1641932392668,1.00738951,3242.2,3240.9,5.5]
[1641932392869,1.45438951,3242.2,3240.9,5.5]
[1641932393069,0.00682108,3242.1,3240.9,5.5]
[1641932393276,0.00682108,3242.1,3241.4,1.0241474]
[1641932393473,0.00625266,3242.0,3241.4,1.0241474]
[1641932393872,0.00568424,3241.9,3241.4,1.0241474]
[1641932394275,0.00511581,3241.8,3241.4,1.0241474]
[1641932394677,0.00454739,3241.7,3241.4,1.0241474]
[1641932395075,0.00397897,3241.6,3241.4,1.0241474]
[1641932395477,0.00341054,3241.5,3241.4,1.0241474]
[1641932396075,0.00341054,3241.5,3241.4,3.7741474]
[1641932396519,0.00341054,3241.5,3241.4,2.75]
[1641932398024,0.00341054,3241.5,3241.4,3.59260921]
[1641932400887,0.00341054,3241.5,3241.4,2.75]
[1641932403491,0.00341054,3241.5,3241.1,1.1392]
[1641932403933,0.00284212,3241.4,3241.1,1.1392]
[1641932404321,0.0022737,3241.3,3241.1,1.1392]
[1641932404722,0.00170527,3241.2,3241.1,1.1392]
[1641932404926,0.29530603,3241.1,3240.6,3.6626]
[1641932405131,0.29530603,3241.1,3240.2,3.9093]
[1641932405132,0.29530603,3241.1,3240.4,4.9293]
[1641932405328,0.30057212,3241.1,3240.7,0.00113684]
[1641932405529,0.30057212,3241.1,3240.4,0.29215597]
[1641932405729,0.01309732,3240.9,3240.5,0.00113685]
[1641932406127,0.01309732,3240.9,3240.3,4.3491]
[1641932406128,0.01309732,3240.9,3240.4,0.00170527]
[1641932406930,0.80200527,3241.0,3240.4,0.00170527]
[1641932407129,0.30170527,3241.0,3240.4,0.00170527]
[1641932407332,0.00113684,3240.9,3240.4,0.00170527]
[1641932408578,0.00113684,3240.9,3240.6,1.02322446]
[1641932409382,0.00113684,3240.9,3240.7,1.9309285]
[1641932409581,0.00113684,3240.9,3240.7,2.0]
[1641932409779,0.00113684,3240.9,3240.7,1.1989]
[1641932411285,0.00113684,3240.9,3240.7,2.1989]
[1641932411750,0.00113684,3240.9,3240.8,8.64754433]
[1641932412954,0.00113684,3240.9,3240.8,9.64754433]
[1641932412955,3.684e-05,3240.9,3240.8,9.64754433]
[1641932413149,3.684e-05,3240.9,3240.8,28.35914433]
[1641932413447,3.684e-05,3240.9,3240.8,29.35914433]
[1641932415047,3.684e-05,3240.9,3240.8,31.98784919]
[1641932416278,3.684e-05,3240.9,3240.8,9.2116]
[1641932416481,3.684e-05,3240.9,3240.8,6.55]
[1641932416677,3.684e-05,3240.9,3240.8,7.55]
[1641932416882,3.684e-05,3240.9,3240.8,6.55]
[1641932418079,3.684e-05,3240.9,3240.8,7.55]
[1641932418680,3.684e-05,3240.9,3240.8,9.47014111]
[1641932418929,3.684e-05,3240.9,3240.8,9.77014111]
[1641932420338,3.684e-05,3240.9,3240.8,9.47014111]
[1641932420539,3.684e-05,3240.9,3240.8,7.55]
[1641932420739,3.684e-05,3240.9,3240.8,9.48628088]
[1641932421942,3.684e-05,3240.9,3240.8,9.78628088]
[1641932422342,3.684e-05,3240.9,3240.8,7.55]
[1641932423989,3.684e-05,3240.9,3240.7,1.1989]
[1641932424389,0.02174978,3240.8,3240.5,3.6688]
[1641932424793,0.02174978,3240.8,3240.6,0.00166843]
[1641932424990,3.684e-05,3240.9,3240.6,1.02133844]
[1641932425190,3.684e-05,3240.9,3240.6,1.01967001]
[1641932425388,3.684e-05,3240.9,3240.7,0.0011]
[1641932425789,3.684e-05,3240.9,3240.4,0.00280527]
[1641932427848,0.98733684,3240.9,3240.4,0.00280527]
[1641932428049,1.28733684,3240.9,3240.4,0.00280527]
[1641932428454,0.447,3240.8,3240.3,0.0033737]
[1641932428649,0.447,3240.8,3239.9,0.00564739]
[1641932428850,0.447,3240.8,3239.8,0.00621581]
[1641932429652,0.447,3240.8,3239.5,0.00792109]
[1641932431083,0.447,3240.8,3239.4,8.14621451]
[1641932431283,0.00682109,3240.7,3239.4,8.14621451]
[1641932431483,0.447,3240.6,3239.4,8.14621451]
[1641932431786,0.447,3240.6,3239.5,2.0]
[1641932431787,0.00568424,3240.5,3239.5,2.0]
[1641932432088,0.447,3240.6,3239.4,8.14621451]
[1641932432089,0.00511582,3240.4,3239.4,8.14621451]
[1641932432484,0.00454739,3240.3,3239.4,8.14621451]
[1641932432885,0.00397897,3240.2,3239.4,8.14621451]
[1641932433284,0.00341055,3240.1,3239.4,8.14621451]
[1641932433684,0.00284212,3240.0,3239.4,8.14621451]
[1641932433952,0.00284212,3240.0,3239.5,1.95454545]
[1641932434149,0.0022737,3239.9,3239.6,0.00506588]
[1641932434350,0.0022737,3239.9,3239.5,1.95454545]
[1641932434550,0.00170528,3239.8,3239.5,1.95454545]
[1641932434950,0.00113685,3239.7,3239.5,1.95454545]
[1641932435357,0.00738951,3240.8,3240.4,1.02187604]
[1641932435752,0.00682109,3240.7,3240.4,1.02187604]
[1641932436149,0.00625266,3240.6,3240.4,1.02187604]
[1641932436551,0.447,3240.9,3240.4,1.02187604]
[1641932436552,0.00568424,3240.5,3240.4,1.02187604]
[1641932437552,0.00568424,3240.5,3239.6,1.1625]
[1641932437991,0.00511582,3240.4,3239.6,1.1625]
[1641932438384,0.00454739,3240.3,3239.6,1.1625]
[1641932438582,0.00454739,3240.3,3239.8,1.1246662]
[1641932438786,0.00397897,3240.2,3239.8,1.1246662]
[1641932439188,0.00341055,3240.1,3239.8,1.1246662]
[1641932439585,0.00284212,3240.0,3239.8,1.1246662]
[1641932439987,0.0022737,3239.9,3239.8,1.1246662]
[1641932440592,0.0022737,3239.9,3239.8,4.2746662]
[1641932441534,0.0022737,3239.9,3239.8,7.6246662]
[1641932442535,0.0022737,3239.9,3239.8,8.6246662]
[1641932442836,0.0022737,3239.9,3239.8,8.9246662]
[1641932443537,7.37e-05,3239.9,3239.8,8.9246662]
[1641932443737,7.37e-05,3239.9,3239.8,10.42938417]
[1641932444340,7.37e-05,3239.9,3239.8,28.47938417]
[1641932444537,7.37e-05,3239.9,3239.8,18.47938417]
[1641932444736,7.37e-05,3239.9,3239.8,19.47938417]
[1641932445184,7.37e-05,3239.9,3239.8,19.92638417]
[1641932445383,0.01251558,3242.0,3239.8,20.84124417]
[1641932445582,0.01251558,3242.0,3240.1,0.01251006]
[1641932445786,0.80568589,3242.3,3240.3,18.05]
[1641932445787,0.00625266,3241.0,3240.3,18.05]
[1641932445984,0.00625266,3241.0,3240.4,7.6845]
[1641932446183,0.00568423,3240.9,3240.5,18.57413]
[1641932446582,0.00511581,3240.8,3240.7,18.05]
[1641932446782,0.00511581,3240.8,3240.7,19.097]
[1641932446985,0.00511581,3240.8,3240.7,20.097]
[1641932447381,0.00511581,3240.8,3240.7,20.96425014]
[1641932449033,0.00511581,3240.8,3240.7,2.61425014]